[Event "1st Bella Italia International 2022"]
[Site "Lignano"]
[Date "2022.08.22"]
[Round "8.4"]
[White "Jonkman, Harmen"]
[Black "Sonis, Francesco"]
[Result "0-1"]
[ECO "B22"]
[WhiteElo "2373"]
[BlackElo "2543"]
[Annotator "TA"]
[PlyCount "118"]
[EventDate "2022.08.18"]
[EventCountry "ITA"]
[SourceTitle "playchess.com"]
[Source "ChessBase"]
[SourceQuality "1"]
[TimeControl "5400+30"]

{[%evp 12,118,0,0,2,16,10,0,19,0,99,97,101,110,96,66,78,68,82,82,92,58,109,55,65,45,40,18,14,17,17,11,20,21,19,20,13,0,0,0,0,0,0,0,0,0,0,0,152,151,147,149,164,160,168,156,156,156,156,156,156,156,156,156,156,79,65,75,55,22,51,37,61,25,37,25,22,58,86,0,255,0,0,0,0,-838,-484,-1608,-1712,-1697,-1602,-29961,-1494,-29962,-29963,-29964,-11520,-29965,-29966,-29965,-29962,-29973,-29974,-29974,-29974,-29974,-29973,-6195,-6079]} 1. e4 {[%emt 0:00:02][%cal Be2e4,Be4e5][%mdl 32]} c5 {[%emt 0:01:01]} 2. c3 {[%emt 0:02:31]} Nf6 {[%emt 0:00:06]} 3. e5 {[%emt 0:00:05]} Nd5 {[%emt 0:00:02]} 4. Nf3 {[%emt 0:00:27]} d6 {[%emt 0:00:04]} 5. d4 {[%emt 0:00:37]} cxd4 {[%emt 0:00:06]} 6. Qxd4 {[%emt 0:00:12]} e6 {[%emt 0:00:12]} 7. exd6 {[%emt 0:00:11]} Qxd6 {[%emt 0:04:38] 7...Nc6 is the hot move. B22: Sicilian: 2 c3.} 8. Bd3 {[%emt 0:01:24]} Nc6 {[%emt 0:01:49]} 9. Qe4 {[%emt 0:00:08]} f5 {[%emt 0:07:09] The position is equal.} 10. Qe2 {[%emt 0:00:43]} Nf4 {[%emt 0:02:23]} (10... e5 $11) 11. Bxf4 $16 {[%emt 0:00:07]} Qxf4 {[%emt 0:00:02] [#]} 12. Nbd2 $146 {[%emt 0:04:48]} ({Predecessor:} 12. O-O Be7 13. Nbd2 O-O 14. Nc4 Bf6 15. Rfe1 Rd8 16. Rad1 b5 17. Nce5 Nxe5 18. Nxe5 {1-0 (28) Goodger,M (2107)-Reuben,S (2137) England 2011}) 12... Be7 {[%emt 0:01:04]} 13. Bb5 {[%emt 0:25:38]} Bf6 {[%emt 0:04:16]} 14. O-O {[%emt 0:16:17]} O-O {[%emt 0:01:08]} 15. Nc4 {[%emt 0:05:06]} Qc7 {[%emt 0:04:23]} 16. Rad1 {[%emt 0:09:55]} Rd8 {[%emt 0:00:30] Against Nd6} ({Black should play} 16... e5 $1 $14) 17. Rxd8+ {[%emt 0:00:52]} (17. Bxc6 $16 Rxd1 18. Rxd1 Qxc6 19. Nfe5) 17... Nxd8 $14 {[%emt 0:00:12]} 18. Nce5 {[%emt 0:00:37]} Nf7 {[%emt 0:03:51]} 19. Re1 {[%emt 0:01:00]} Nxe5 {[%emt 0:05:53]} 20. Nxe5 {[%emt 0:00:02]} a6 {[%emt 0:00:11]} 21. Ba4 {[%emt 0:03:42]} Bxe5 {[%emt 0:04:01]} 22. Qxe5 {[%emt 0:00:03]} Qxe5 {[%emt 0:00:05]} 23. Rxe5 $11 {[%emt 0:27:33][%mdl 4096] Endgame KRB-KRB} Kf8 {[%emt 0:00:02]} 24. Rc5 {[%emt 0:00:00]} b5 {[%emt 0:00:04]} 25. Bb3 {[%emt 0:00:00]} Ke7 {[%emt 0:00:30] And now ...Kd6 would win.} 26. f4 {[%emt 0:00:00]} Kd6 {[%emt 0:00:07] Against Rc7} 27. Re5 {[%emt 0:00:00]} g5 {[%emt 0:00:08]} 28. g3 {[%emt 0:00:00]} Bd7 {[%emt 0:00:04]} 29. Kf2 {[%emt 0:00:00]} Rg8 $2 {[%emt 0:00:05]} (29... Rc8 $11) 30. Rxf5 $1 $16 {[%emt 0:00:00]} gxf4 {[%emt 0:01:08]} 31. Rxf4 {[%emt 0:00:00]} Rg7 {[%emt 0:00:42]} 32. Rh4 {[%emt 0:00:00]} Be8 {[%emt 0:01:40]} 33. Rd4+ {[%emt 0:00:00]} Ke7 {[%emt 0:00:08]} 34. Re4 {[%emt 0:00:00]} Rg6 {[%emt 0:00:15]} 35. Ke3 {[%emt 0:00:00]} Rh6 {[%emt 0:00:35]} 36. h4 $1 {[%emt 0:00:00]} Rg6 {[%emt 0:00:08]} 37. g4 {[%emt 0:00:00]} Bc6 {[%emt 0:04:12]} 38. Re5 {[%emt 0:00:00]} (38. Rf4 $142) 38... Kd6 {[%emt 0:02:45]} 39. Rg5 {[%emt 0:02:56] Threatens to win with Rxg6.} Rf6 {[%emt 0:00:02]} 40. Bd1 {[%emt 0:01:27] Prevents Rf3+. Be2 is the strong threat.} Rf1 {[%emt 0:00:49]} 41. Be2 {[%emt 0:00:02]} Rh1 {[%emt 0:00:14]} 42. Rh5 {[%emt 0:00:22]} Rh3+ {[%emt 0:00:05]} 43. Kf4 {[%emt 0:00:15]} Rh2 {[%emt 0:00:10]} 44. Bd3 {[%emt 0:00:14]} e5+ {[%emt 0:00:53] [#]} 45. Kf5 {[%emt 0:02:48]} ({Don't go for} 45. Rxe5 $2 Rf2+ 46. Ke3 Rf3+ 47. Kd4 {[#]} Rxd3+ $1 {[%mdl 512]} 48. Kxd3 Kxe5 $19) (45. Kg3 $1 $16 {[%cal Rg3h2]} Rg2+ 46. Kh3 Rxb2 47. Rh6+ (47. Bxh7 Rxa2 48. Rh6+ Kc5 $16) (47. Rxh7 Bg2+ 48. Kg3 e4 $11) 47... Kc5 48. Bxh7 (48. Rxh7 Bg2+ 49. Kg3 e4 $11)) 45... Rf2+ $11 {[%emt 0:00:49]} 46. Kg5 {[%emt 0:00:01]} e4 {[%emt 0:00:04]} 47. Rh6+ {[%emt 0:00:14]} Ke5 {[%emt 0:02:55]} 48. Rxc6 $2 {[%emt 0:03:11][%mdl 8192]} (48. Bb1 $11 Rxb2 49. Rxc6 Rxb1 50. Rc8) 48... exd3 {[%emt 0:00:23] KR-KR} 49. Rc8 {[%emt 0:00:32]} (49. Rc5+ $142 Ke4 50. Rc7) 49... Rf6 $19 {[%emt 0:00:45]} 50. Re8+ {[%emt 0:00:30]} Re6 {[%emt 0:00:09]} 51. Rf8 {[%emt 0:00:13]} Rg6+ {[%emt 0:00:44]} 52. Kh5 {[%emt 0:00:02]} d2 {[%emt 0:00:05]} 53. Rf1 {[%emt 0:00:32]} Ke4 {[%emt 0:00:03] ( -> ...Kd3)} 54. g5 {[%emt 0:00:17]} Kd3 {[%emt 0:00:06]} 55. Kg4 {[%emt 0:00:10]} Ke2 {[%emt 0:00:05]} 56. Rh1 {[%emt 0:00:06]} d1=Q {[%emt 0:00:05]} 57. Rxd1 {[%emt 0:00:03]} Kxd1 {[%emt 0:00:04]} 58. h5 {[%emt 0:03:35]} Rg8 {[%emt 0:00:03]} 59. Kf5 {[%emt 0:00:00]} Kc2 {[%emt 0:00:05] What a bad dream for White.  Weighted Error Value: White=0.59/Black=0.12 (very precise)} 0-1

[Event "1st Bella Italia International 2022"]
[Site "Lignano"]
[Date "2022.08.22"]
[Round "8.5"]
[White "Bommini Mounika Akshaya"]
[Black "Zeller, Frank"]
[Result "1/2-1/2"]
[ECO "E51"]
[WhiteElo "2107"]
[BlackElo "2356"]
[Annotator "TA"]
[PlyCount "68"]
[EventDate "2022.08.18"]
[EventCountry "ITA"]
[SourceTitle "playchess.com"]
[Source "ChessBase"]
[SourceQuality "1"]
[TimeControl "5400+30"]

{[%evp 13,68,-7,0,0,14,8,24,24,32,27,34,34,41,59,60,79,70,78,75,60,54,54,54,56,65,13,16,0,0,0,7,6,4,0,0,0,0,0,0,0,0,0,0,0,0,0,0,0,20,0,0,0,9,0,0,0,0]} 1. d4 {[%emt 0:07:04]} Nf6 {[%emt 0:00:20]} 2. c4 {[%emt 0:00:06]} e6 {[%emt 0:00:13]} 3. Nc3 {[%emt 0:00:04]} Bb4 {[%emt 0:00:14]} 4. e3 {[%emt 0:00:08]} O-O {[%emt 0:00:20]} 5. Bd2 {[%emt 0:00:05]} d5 {[%emt 0:03:24]} 6. Nf3 {[%emt 0:00:06]} b6 {[%emt 0:05:37]} 7. cxd5 {[%emt 0:00:07]} exd5 {[%emt 0:00:44]} 8. Rc1 {[%emt 0:00:05] E51: Nimzo-Indian: Rubinstein: 4...0-0 5 Nf3 d5.} a6 {[%emt 0:01:47]} 9. Bd3 {[%emt 0:00:06]} Re8 {[%emt 0:02:31]} 10. Ne5 {[%emt 0:00:48] White has an edge.} c5 {[%emt 0:02:32]} 11. O-O {[%emt 0:07:48]} Bb7 {[%emt 0:04:32]} 12. a3 {[%emt 0:03:51] [#]} cxd4 $146 {[%emt 0:03:53]} ({Predecessor:} 12... Bxc3 13. Bxc3 c4 14. Bb1 Nc6 15. f4 b5 16. Be1 Ne4 17. Qh5 Qc7 18. Bxe4 dxe4 {1-0 (28) Harika,D (2492)-Kosteniuk,A (2517) Shaoxing 2019}) 13. axb4 {[%emt 0:04:37]} dxc3 {[%emt 0:05:54]} 14. Bxc3 {[%emt 0:08:51]} Qd6 {[%emt 0:00:28]} 15. f4 {[%emt 0:18:40]} Nc6 {[%emt 0:02:45]} 16. b5 {[%emt 0:06:55]} axb5 {[%emt 0:17:47]} 17. Bxb5 {[%emt 0:00:20] [#] Hoping for Nxc6. A strong pair of Bishops.} Rec8 {[%emt 0:00:23]} 18. Nxc6 {[%emt 0:16:25]} (18. Bd3 {with more complications.} Qe6 19. Re1 Nxe5 20. Bxe5 Rxc1 21. Qxc1 Ba6 22. Bxa6 Rxa6 23. Qc7) 18... Bxc6 {[%emt 0:00:30]} 19. Bxc6 {[%emt 0:00:41]} (19. Bd3 $14) 19... Rxc6 $11 {[%emt 0:08:19] The position is equal.} 20. Bxf6 {[%emt 0:00:58]} Rxc1 {[%emt 0:01:59]} 21. Qxc1 {[%emt 0:00:01]} Qxf6 $14 {[%emt 0:00:23][%mdl 4096] Endgame KQR-KQR} 22. Rd1 {[%emt 0:00:40]} Qe6 {[%emt 0:05:24]} 23. Qd2 {[%emt 0:00:40]} h5 {[%emt 0:01:25][%cal Bh7h5,Bh5h4,Bh4h3][%mdl 32]} 24. Kf2 {[%emt 0:02:10]} Ra5 {[%emt 0:02:14]} 25. Qd4 {[%emt 0:03:40]} h4 {[%emt 0:03:37]} 26. Rd2 {[%emt 0:03:28]} h3 {[%emt 0:00:26]} 27. b4 {[%emt 0:15:36]} Ra3 {[%emt 0:01:31]} 28. g3 {[%emt 0:00:00]} Kh7 {[%emt 0:09:54]} 29. Kf3 {[%emt 0:00:00]} f5 {[%emt 0:08:47]} 30. Qe5 {[%emt 0:00:00]} Qg6 {[%emt 0:00:43]} 31. Qxd5 {[%emt 0:00:00] Black must now prevent Rc2.} Ra1 {[%emt 0:02:55]} 32. Kf2 {[%emt 0:00:00]} Rb1 {[%emt 0:00:34]} 33. b5 {[%emt 0:01:13] Active counter play!} Qg4 {[%emt 0:00:54]} 34. Qc6 {[%emt 0:01:27]} Ra1 {[%emt 0:01:12] Weighted Error Value: White=0.07 (flawless) /Black=0.02 (flawless)} 1/2-1/2

[Event "1st Bella Italia International 2022"]
[Site "Lignano"]
[Date "2022.08.22"]
[Round "8.6"]
[White "Priyanka Nutakki"]
[Black "Cappelletto, Joshuaede"]
[Result "0-1"]
[ECO "E73"]
[WhiteElo "2308"]
[BlackElo "2266"]
[Annotator "TA"]
[PlyCount "94"]
[EventDate "2022.08.18"]
[EventCountry "ITA"]
[SourceTitle "playchess.com"]
[Source "ChessBase"]
[SourceQuality "1"]
[TimeControl "5400+30"]

{[%evp 12,94,29,17,39,31,31,21,33,35,42,-103,-97,-100,-72,-104,-113,-111,-106,-110,-116,-106,-100,-120,-89,-102,-77,-97,-56,-70,-42,-36,-31,-39,-52,-44,0,0,0,-29,41,37,42,40,133,41,49,60,104,97,96,120,111,61,49,57,60,0,0,0,14,0,0,0,0,0,0,-2,-12,-9,0,-160,-163,-217,-68,-95,-106,-95,-85,-1465,-898,-29991,-29992,-29998,-29999]} 1. d4 {[%emt 0:06:47]} Nf6 {[%emt 0:00:06]} 2. c4 {[%emt 0:00:11]} g6 {[%emt 0:00:06]} 3. h4 {[%emt 0:00:19]} Bg7 {[%emt 0:04:49]} 4. Nc3 {[%emt 0:00:08]} d6 {[%emt 0:02:19]} 5. e4 {[%emt 0:00:51]} O-O {[%emt 0:02:37]} 6. Be2 {[%emt 0:01:20]} h5 {[%emt 0:00:17]} 7. Bg5 {[%emt 0:03:49]} c5 {[%emt 0:01:10] E73: King's Indian: Averbakh Variation without 6...c5.} 8. d5 {[%emt 0:03:28]} a6 {[%emt 0:02:10][%cal Ob7b5,Ba7a6,Ba6b5,Bb5b4][%mdl 32]} 9. Qd2 {[%emt 0:01:59]} b5 {[%emt 0:05:50] The position is equal.} 10. cxb5 {[%emt 0:06:44]} axb5 {[%emt 0:00:16] [#]} 11. f3 $146 {[%emt 0:00:59]} (11. Bxb5 $14 Ba6 12. f3) ({Predecessor:} 11. Bxb5 Ba6 12. Bxa6 Nxa6 13. Nge2 Qa5 14. a4 Rfb8 15. f3 Nc7 16. O-O Rb7 17. Rfb1 {1-0 (39) Vaishali,R (2403)-Danielian,V (2230) Chess.com INT 2022}) 11... b4 $17 {[%emt 0:11:28]} 12. Nd1 {[%emt 0:00:06]} Ra4 {[%emt 0:01:20]} 13. Bb5 {[%emt 0:13:29]} Ra5 {[%emt 0:01:01]} 14. Bc4 {[%emt 0:00:20]} Nbd7 {[%emt 0:00:52]} 15. Ne3 {[%emt 0:01:34]} Ba6 {[%emt 0:02:39]} 16. Bxa6 {[%emt 0:09:56]} Rxa6 {[%emt 0:00:06]} 17. Ne2 {[%emt 0:00:05]} Qa8 {[%emt 0:00:18]} 18. Nc1 {[%emt 0:00:09]} Ne5 {[%emt 0:13:32]} 19. Rb1 {[%emt 0:06:15]} c4 {[%emt 0:11:37]} 20. O-O {[%emt 0:04:30]} Qa7 {[%emt 0:07:17]} 21. Kh1 {[%emt 0:04:07]} Qc5 {[%emt 0:00:53]} 22. Qe2 {[%emt 0:00:23]} Ra7 {[%emt 0:04:24]} 23. Nc2 $1 {[%emt 0:05:43]} Rc7 {[%emt 0:00:14]} 24. Be3 {[%emt 0:00:30]} Qa5 {[%emt 0:00:51]} 25. Qe1 {[%emt 0:01:11]} c3 {[%emt 0:02:53]} (25... e6 $11 26. dxe6 fxe6) 26. bxc3 $14 {[%emt 0:00:32]} Rxc3 {[%emt 0:00:07]} (26... bxc3 $2 27. Bb6 Qa4 28. Bxc7 $18) 27. Nxb4 {[%emt 0:00:23]} Qa3 {[%emt 0:04:21] [#]} (27... Rc4 $1 $14) 28. Bd2 {[%emt 0:02:22]} (28. Bd4 $1 $16 Rc7 29. Bxe5 dxe5 30. Ncd3) 28... Rc4 {[%emt 0:01:38]} 29. Qe2 {[%emt 0:03:24]} Qa4 {[%emt 0:01:11]} 30. Ncd3 {[%emt 0:01:35]} Nxd3 {[%emt 0:00:26]} 31. Qxd3 {[%emt 0:00:08]} Rc7 {[%emt 0:00:20]} 32. Nc6 {[%emt 0:02:09]} (32. Rfc1 $16 Rxc1+ 33. Rxc1) 32... e6 {[%emt 0:01:49]} 33. Nb4 $1 {[%emt 0:02:52]} exd5 {[%emt 0:01:17]} 34. exd5 {[%emt 0:00:19]} (34. Nxd5 $14 Nxd5 35. Qxd5) 34... Rfc8 $11 {[%emt 0:01:34]} 35. Rfe1 {[%emt 0:05:26]} Nd7 {[%emt 0:00:44]} 36. f4 {[%emt 0:04:05]} Nf6 {[%emt 0:01:55][%cal Bd7f6,Bf6g4,Bg4e5][%mdl 32]} 37. f5 {[%emt 0:00:22]} Ng4 {[%emt 0:00:05] [#] Hoping for ...Nf2+.} 38. Rf1 {[%emt 0:01:00] Inhibits Nf2+.} Kh7 {[%emt 0:00:41]} 39. Rbe1 {[%emt 0:05:19]} Ne5 {[%emt 0:00:05]} 40. Qb3 {[%emt 0:01:28]} Qb5 {[%emt 0:01:10]} 41. Rf4 $2 {[%emt 0:01:27]} ({White should try} 41. Rb1 $11) 41... Bh6 $17 {[%emt 0:03:39]} 42. Qg3 {[%emt 0:01:54]} (42. a4 {is a better defense.} Qa5 43. Qg3) 42... Bxf4 {[%emt 0:01:06]} ({Better is} 42... Ng4 $19 {aiming for ...Re8.} 43. fxg6+ fxg6) 43. Qxf4 $15 {[%emt 0:00:01] White wants to mate with Qh6+.} Ng4 {[%emt 0:00:01] Against Qh6+. White must now prevent ...Re8. Active counter play!} 44. fxg6+ {[%emt 0:01:00]} fxg6 {[%emt 0:00:05] Strongly threatening ...Re8.} 45. Qxd6 $2 {[%emt 0:00:04][%mdl 8192]} (45. Nc6 $17 Rg8 46. a4 (46. Qxd6 $2 Rf7 $19)) 45... Rf7 $19 {[%emt 0:00:16] ( -> ...Rf1+)} 46. Kg1 {[%emt 0:00:38] Against Rf1+} Rcf8 {[%emt 0:00:07]} 47. Qa6 {[%emt 0:01:09]} Rf1+ {[%emt 0:00:06][%mdl 64] Back Rank.  Weighted Error Value: White=0.47/Black=0.16 (very precise)} 0-1

[Event "1st Bella Italia International 2022"]
[Site "Lignano"]
[Date "2022.08.22"]
[Round "8.7"]
[White "Player, Edmund C"]
[Black "Etxagibel Larranaga, Asier"]
[Result "1-0"]
[ECO "B19"]
[WhiteElo "2202"]
[BlackElo "2118"]
[Annotator "TA"]
[PlyCount "97"]
[EventDate "2022.08.18"]
[EventCountry "ITA"]
[SourceTitle "playchess.com"]
[Source "ChessBase"]
[SourceQuality "1"]
[TimeControl "5400+30"]

{[%evp 30,97,33,15,35,42,65,22,10,0,0,0,0,0,0,0,0,0,0,0,0,0,0,0,0,0,0,0,0,0,0,0,0,0,0,0,0,0,0,0,0,0,0,0,0,-8,-8,-11,0,-6,0,0,0,0,0,0,0,0,0,0,8,8,12,12,12,12,29975,29976,29975,29974]} 1. e4 {[%emt 0:00:02]} c6 {[%emt 0:00:01]} 2. d4 {[%emt 0:00:06]} d5 {[%emt 0:00:02]} 3. Nd2 {[%emt 0:00:06]} dxe4 {[%emt 0:00:02]} 4. Nxe4 {[%emt 0:00:06]} Bf5 {[%emt 0:00:03]} 5. Ng3 {[%emt 0:00:08]} Bg6 {[%emt 0:00:02]} 6. h4 {[%emt 0:00:35]} h6 {[%emt 0:00:02]} 7. Nf3 {[%emt 0:00:13]} Nd7 {[%emt 0:00:17]} 8. h5 {[%emt 0:00:06]} Bh7 {[%emt 0:00:04]} 9. Bd3 {[%emt 0:00:07]} Bxd3 {[%emt 0:00:02]} 10. Qxd3 {[%emt 0:00:10]} e6 {[%emt 0:00:03]} 11. Bd2 {[%emt 0:00:12]} Qc7 {[%emt 0:00:25]} 12. O-O-O {[%emt 0:02:20]} Ngf6 {[%emt 0:00:13]} 13. Ne4 {[%emt 0:06:55]} Nxe4 {[%emt 0:02:30]} 14. Qxe4 {[%emt 0:00:02]} Nf6 {[%emt 0:00:09]} 15. Qe2 {[%emt 0:00:54]} O-O-O {[%emt 0:03:32]} 16. g3 {[%emt 0:03:56]} Rd5 {[%emt 0:13:22] B19: Classical Caro-Kann: 4...Bf5 main line.} 17. c4 {[%emt 0:18:26]} Rxh5 {[%emt 0:08:29]} 18. Rxh5 {[%emt 0:01:15]} Nxh5 {[%emt 0:00:02] The position is equal.} 19. d5 {[%emt 0:07:31]} exd5 {[%emt 0:28:53] [#]} ({Don't do} 19... cxd5 20. Kb1 Bd6 21. cxd5 $16 (21. Rc1 Qe7 $16)) 20. cxd5 $146 {[%emt 0:10:07] [#] Qe8+ is the strong threat.} ({Predecessor:} 20. Qe8+ Qd8 21. Qxf7 Nf6 22. Bc3 Qd7 {½-½ (23) Forrisdahl,O (2481)-Penafiel Lopez,J (2398) ICCF email 2012}) 20... Nf6 {[%emt 0:05:47] Prevents Qe8+.} (20... cxd5+ $2 21. Kb1 Bc5 22. Rc1 $18) 21. dxc6 {[%emt 0:07:34]} Qxc6+ {[%emt 0:02:48]} 22. Kb1 {[%emt 0:23:34]} Qe4+ {[%emt 0:07:15]} 23. Qxe4 {[%emt 0:00:02]} Nxe4 {[%emt 0:00:06]} 24. Be3 {[%emt 0:00:02]} b6 {[%emt 0:11:06]} 25. Ne5 {[%emt 0:01:23]} Bc5 {[%emt 0:05:18]} 26. Bxc5 {[%emt 0:00:09]} bxc5 {[%emt 0:02:31]} 27. Nxf7 $11 {[%emt 0:08:58][%mdl 4096] Endgame KRN-KRN} Rf8 {[%emt 0:00:11]} 28. Nd6+ {[%emt 0:00:03]} Nxd6 {[%emt 0:00:14]} 29. Rxd6 {[%emt 0:00:14]} Rxf2 {[%emt 0:00:15] KR-KR} 30. Rg6 {[%emt 0:00:10]} Rf7 {[%emt 0:02:28]} 31. Kc2 {[%emt 0:00:08]} Kd8 {[%emt 0:01:33]} 32. Kc3 {[%emt 0:00:46]} Ke8 {[%emt 0:00:02]} 33. Kc4 {[%emt 0:03:41]} Rc7 {[%emt 0:00:03]} 34. a4 {[%emt 0:01:25]} Kf7 {[%emt 0:00:46]} 35. Rd6 {[%emt 0:00:44]} Rb7 {[%emt 0:03:43]} 36. b3 {[%emt 0:01:23]} Rb4+ {[%emt 0:03:02]} 37. Kc3 {[%emt 0:00:02]} Rg4 {[%emt 0:00:06]} 38. Rd7+ {[%emt 0:00:12]} Ke6 {[%emt 0:00:03]} 39. Rxa7 {[%emt 0:00:23]} Kd5 {[%emt 0:00:05]} 40. Rd7+ {[%emt 0:00:23]} Kc6 {[%emt 0:00:19]} 41. Rd3 {[%emt 0:00:14]} h5 {[%emt 0:00:55]} 42. Kd2 {[%emt 0:02:28]} c4 {[%emt 0:01:54]} 43. Rc3 {[%emt 0:00:38]} Kc5 {[%emt 0:00:34]} 44. a5 {[%emt 0:00:35] aiming for Rxc4+.} Kb5 {[%emt 0:00:14]} 45. bxc4+ {[%emt 0:00:13][%cal Bb3c4,Bc4c5,Bc5c6][%mdl 32]} Kxa5 {[%emt 0:00:01]} 46. c5 {[%emt 0:00:05]} Kb4 {[%emt 0:01:31]} 47. Rc1 {[%emt 0:03:00]} Rxg3 {[%emt 0:01:32][%mdl 8192] [#]} (47... Kb5 $11) 48. c6 {[%emt 0:00:25]} Rg2+ {[%emt 0:00:36]} 49. Ke3 {[%emt 0:00:29] Weighted Error Value: White=0.02 (flawless) /Black=0.28 (precise)} 1-0

[Event "1st Bella Italia International 2022"]
[Site "Lignano"]
[Date "2022.08.22"]
[Round "8.8"]
[White "Lapiccirella, Daniele"]
[Black "Loiacono, Leonardo"]
[Result "1/2-1/2"]
[ECO "D37"]
[WhiteElo "2173"]
[BlackElo "2291"]
[Annotator "NA RC"]
[PlyCount "83"]
[EventDate "2022.08.18"]
[EventCountry "ITA"]
[SourceTitle "playchess.com"]
[Source "ChessBase"]
[SourceQuality "1"]
[TimeControl "5400+30"]

1. d4 {[%emt 0:00:03]} d5 {[%emt 0:11:32]} 2. c4 {[%emt 0:00:08]} e6 {[%emt 0:00:03]} 3. Nc3 {[%emt 0:00:05]} Be7 {[%emt 0:00:04]} 4. Nf3 {[%emt 0:00:06]} Nf6 {[%emt 0:00:05]} 5. Bf4 {[%emt 0:00:05]} O-O {[%emt 0:00:06]} 6. e3 {[%emt 0:00:05]} b6 {[%emt 0:00:05]} 7. Bd3 {[%emt 0:00:27]} dxc4 {[%emt 0:00:06]} 8. Bxc4 {[%emt 0:00:06]} Bb7 {[%emt 0:00:03]} 9. O-O {[%emt 0:00:21]} a6 {[%emt 0:00:11]} 10. Qe2 {[%emt 0:00:33]} b5 {[%emt 0:00:04]} 11. Bd3 {[%emt 0:00:32]} Nbd7 {[%emt 0:06:56]} 12. Rfd1 {[%emt 0:02:43]} c5 {[%emt 0:12:49]} 13. dxc5 {[%emt 0:25:11]} Bxc5 {[%emt 0:00:06]} 14. Ne5 {[%emt 0:00:09]} Qe7 {[%emt 0:03:19]} 15. Nxd7 {[%emt 0:00:17]} Nxd7 {[%emt 0:00:05]} 16. Bxh7+ {[%emt 0:00:10]} Kxh7 {[%emt 0:01:01]} 17. Qd3+ {[%emt 0:00:05]} f5 {[%emt 0:00:26]} 18. Qxd7 {[%emt 0:00:09]} Qxd7 {[%emt 0:00:34]} 19. Rxd7 {[%emt 0:00:07]} Bc6 {[%emt 0:00:03]} 20. Rdd1 {[%emt 0:02:24]} Rfd8 {[%emt 0:02:19]} 21. Be5 {[%emt 0:05:28]} a5 {[%emt 0:01:24]} 22. Ne2 {[%emt 0:01:13]} Bd5 {[%emt 0:03:19]} 23. Nf4 {[%emt 0:24:31]} Bxa2 {[%emt 0:02:19]} 24. Rdc1 {[%emt 0:00:08]} g5 {[%emt 0:02:24]} 25. Rxc5 {[%emt 0:01:32]} gxf4 {[%emt 0:00:26]} 26. Rxb5 {[%emt 0:01:18]} fxe3 {[%emt 0:02:29]} 27. fxe3 {[%emt 0:00:47]} Rd5 {[%emt 0:01:00]} 28. Rb7+ {[%emt 0:01:55]} Kg6 {[%emt 0:00:15]} 29. Bc3 {[%emt 0:11:09]} Bc4 {[%emt 0:00:16]} 30. Ra4 {[%emt 0:00:44]} Rc8 {[%emt 0:02:16]} 31. Rxa5 {[%emt 0:01:13]} Rxa5 {[%emt 0:01:18]} 32. Bxa5 {[%emt 0:00:09]} Bd5 {[%emt 0:00:53]} 33. Rc7 {[%emt 0:00:07]} Rf8 {[%emt 0:00:46]} 34. g3 {[%emt 0:04:42]} Ra8 {[%emt 0:01:34]} 35. b4 {[%emt 0:00:25]} Kf6 {[%emt 0:01:09]} 36. Kf2 {[%emt 0:00:09]} Ke5 {[%emt 0:00:48]} 37. h4 {[%emt 0:00:15]} Ke4 {[%emt 0:00:23]} 38. Rc3 {[%emt 0:04:15]} Rb8 {[%emt 0:01:40]} 39. Rc1 {[%emt 0:00:28]} Ra8 {[%emt 0:01:01]} 40. Rc3 {[%emt 0:05:55]} Rb8 {[%emt 0:01:06]} 41. Rc1 {[%emt 0:01:38]} Ra8 {[%emt 0:00:07]} 42. Rc3 {[%emt 0:00:34]} 1/2-1/2